bitfinex/quotes_SOLUSD_20251126
["timestamp","ask_amount","ask_price","bid_price","bid_amount"]
[1764167910151,8.80994492,136.66,136.59,0.51]
[1764167910344,25.03077828,136.66,136.61,12.94083336]
[1764167910540,25.03077828,136.66,136.64,12.94083336]
[1764167910541,8.80994492,136.66,136.64,12.94083336]
[1764167910847,29.94969736,136.72,136.65,12.94083336]
[1764167911163,12.10994492,136.71,136.67,12.94083336]
[1764167911342,12.10994492,136.71,136.68,12.94083336]
[1764167911536,12.10994492,136.71,136.65,0.51]
[1764167911537,12.80994492,136.71,136.65,0.51]
[1764167911756,12.80994492,136.71,136.67,12.94083336]
[1764167911965,12.80994492,136.71,136.68,7.31635937]
[1764167912660,8.80994492,136.69,136.65,25.61247537]
[1764167912869,0.28432314,136.75,136.66,12.94083336]
[1764167913054,8.80994492,136.71,136.65,25.75463694]
[1764167913248,21.75077828,136.71,136.66,12.94083336]
[1764167913444,25.05077828,136.71,136.66,12.94083336]
[1764167913647,21.75077828,136.69,136.65,7.3179656]
[1764167913841,21.75077828,136.69,136.65,20.25879896]
[1764167913842,8.80994492,136.69,136.65,20.25879896]
[1764167914064,8.80994492,136.68,136.65,7.3179656]
[1764167914255,9.50994492,136.68,136.65,25.61287961]
[1764167914650,16.24083336,136.7,136.65,38.55371297]
[1764167914857,8.80994492,136.69,136.65,38.55371297]
[1764167915370,8.80994492,136.73,136.68,12.94083336]
[1764167915559,25.11880892,136.73,136.7,12.94083336]
[1764167915870,8.80994492,136.73,136.71,7.31475385]
[1764167916073,9.50994492,136.73,136.71,20.25558721]
[1764167916370,9.50994492,136.73,136.7,12.94083336]
[1764167916371,8.80994492,136.71,136.7,12.94083336]
[1764167916576,12.10994492,136.71,136.69,12.94083336]
[1764167916964,12.80994492,136.71,136.69,12.94083336]
[1764167918063,12.10994492,136.71,136.69,20.25615488]
[1764167918770,12.80994492,136.71,136.69,20.25615488]
[1764167918971,12.80994492,136.71,136.7,12.94083336]
[1764167919752,12.80994492,136.71,136.65,80.1941712]
[1764167920077,8.80994492,136.69,136.67,12.94083336]
[1764167920268,8.80994492,136.69,136.68,12.94083336]
[1764167920469,12.08994492,136.69,136.68,12.94083336]
[1764167920699,3.28,136.69,136.68,12.94083336]
[1764167920975,8.80994492,136.67,136.64,12.94083336]
[1764167921279,0.7,136.69,136.66,12.94083336]
[1764167921577,12.08994492,136.68,136.67,12.94083336]
[1764167921773,12.78994492,136.68,136.66,12.94083336]
[1764167922278,16.308864,136.73,136.67,12.94083336]
[1764167922479,21.75077828,136.71,136.65,23.62662764]
[1764167922787,21.75077828,136.71,136.67,12.94083336]
[1764167922788,8.80994492,136.71,136.67,12.94083336]
[1764167922961,0.7,136.7,136.68,12.94083336]
[1764167923161,3.28,136.69,136.68,12.94083336]
[1764167923683,0.7,136.7,136.68,12.94083336]
[1764167923880,3.28,136.69,136.68,12.94083336]
[1764167924077,3.28,136.69,136.68,20.25719273]
[1764167924582,3.28,136.69,136.68,38.54809117]
[1764167925281,0.7,136.73,136.68,39.05809117]
[1764167925478,4.52390662,136.77,136.72,12.94083336]
[1764167925677,3.28,136.76,136.74,12.94083336]
[1764167925878,3.28,136.75,136.74,12.94083336]
[1764167926297,8.80994492,136.76,136.74,12.94083336]
[1764167926593,3.28,136.75,136.72,12.94083336]
[1764167926889,3.98,136.75,136.72,12.94083336]
[1764167927062,0.7,136.74,136.72,12.94083336]
[1764167927580,0.7,136.74,136.71,20.25545667]
[1764167928222,25.11880892,136.76,136.73,12.94083336]
[1764167928368,0.9,136.81,136.75,12.94083336]
[1764167928691,0.2,136.81,136.8,12.94083336]
[1764167928991,3.48,136.81,136.8,12.94083336]
[1764167929154,8.80994492,136.8,136.78,12.94083336]
[1764167929354,8.80994492,136.8,136.79,12.94083336]
[1764167929865,9.50994492,136.8,136.74,16.308864]
[1764167930061,9.50994492,136.8,136.76,12.94083336]
[1764167930268,8.80994492,136.78,136.75,12.94083336]
[1764167930583,8.80994492,136.8,136.77,12.94083336]
[1764167930794,8.80994492,136.8,136.79,12.94083336]
[1764167931095,8.80994492,136.78,136.76,12.94083336]
[1764167931266,3.28,136.77,136.76,12.94083336]
[1764167931969,3.28,136.77,136.75,12.94083336]
[1764167932173,0.7,136.8,136.76,20.25291291]
[1764167932504,12.08994492,136.79,136.78,12.94083336]
[1764167932704,12.08994492,136.79,136.78,7.42333652]
[1764167933072,12.78994492,136.79,136.77,7.42333652]
[1764167933390,12.78994492,136.79,136.78,7.42333652]
[1764167933391,3.28,136.79,136.78,7.42333652]
[1764167933593,3.28,136.79,136.77,7.42333652]
[1764167933902,9.50994492,136.78,136.76,7.31207955]
[1764167934198,9.50994492,136.78,136.76,14.73541607]
[1764167934574,9.50994492,136.78,136.75,14.7357186]
[1764167934772,9.50994492,136.78,136.75,33.01725424]
[1764167935001,9.50994492,136.78,136.76,7.42333652]
[1764167935201,3.28,136.77,136.76,7.42333652]
[1764167935502,8.80994492,136.78,136.76,69.32333652]
[1764167935721,3.28,136.77,136.76,69.32333652]
[1764167936067,3.28,136.77,136.76,61.9]
[1764167936271,3.28,136.77,136.76,69.21207955]
[1764167936883,3.28,136.77,136.75,18.28153564]
[1764167936884,3.98,136.77,136.73,87.60683804]
[1764167937075,10.70333652,136.77,136.74,7.31272641]
[1764167937278,9.50994492,136.76,136.74,7.31272641]
[1764167937900,8.80994492,136.74,136.71,25.71015126]
[1764167938100,3.28,136.73,136.72,7.31421884]
[1764167938403,8.80994492,136.76,136.72,7.42333652]
[1764167938577,3.28,136.75,136.74,7.42333652]
[1764167938774,3.28,136.75,136.73,7.42333652]
[1764167938980,8.80994492,136.76,136.74,7.42333652]
[1764167939182,3.28,136.75,136.72,0.51]
[1764167940109,3.28,136.75,136.74,7.42333652]
[1764167940410,3.28,136.75,136.74,7.31314904]
[1764167941108,16.308864,136.78,136.74,15.24648556]
[1764167941318,3.28,136.77,136.74,26.10602164]
[1764167941613,3.28,136.77,136.72,69.32333652]
[1764167941614,8.80994492,136.76,136.73,14.73681224]
[1764167941788,9.50994492,136.76,136.73,14.73681224]
[1764167941986,16.308864,136.78,136.74,7.42333652]
[1764167942294,16.308864,136.78,136.76,7.31207955]
[1764167942295,3.28,136.77,136.76,7.31207955]
[1764167942622,8.80994492,136.76,136.72,80.18503077]
[1764167942795,8.80994492,136.76,136.73,14.73702042]
[1764167942796,9.50994492,136.76,136.73,14.73702042]
[1764167943512,17.008864,136.78,136.73,25.59789365]
[1764167943690,16.308864,136.78,136.74,7.42333652]
[1764167943888,3.28,136.77,136.75,7.42333652]
[1764167944194,16.308864,136.78,136.76,7.42333652]
[1764167944493,3.28,136.77,136.76,14.73541607]
[1764167944814,3.28,136.77,136.76,7.31207955]
[1764167945026,3.28,136.77,136.76,69.21207955]
[1764167945389,0.2,136.81,136.77,0.14216157]
[1764167945704,0.2,136.81,136.79,7.42333652]
[1764167946086,0.2,136.81,136.8,7.93333652]
[1764167946290,1e-08,136.81,136.8,22.9509377]
[1764167947512,0.2,136.87,136.81,0.51]
[1764167947705,0.2,136.87,136.86,7.42333652]
[1764167948305,17.13328144,136.87,136.81,7.3094072]
[1764167948515,8.80994492,136.83,136.76,0.51]
[1764167948694,8.80994492,136.83,136.81,7.42333652]
[1764167948893,8.80994492,136.83,136.78,0.51]
[1764167948894,8.80994492,136.81,136.75,58.12460693]
[1764167949121,8.80994492,136.81,136.8,7.42333652]
[1764167949303,8.80994492,136.81,136.76,0.51]
[1764167949512,0.7,136.81,136.79,7.42333652]
[1764167949899,9.50994492,136.83,136.8,7.42333652]
[1764167950234,8.80994492,136.81,136.8,7.42333652]
[1764167950391,8.80994492,136.81,136.8,7.30994152]
[1764167950740,16.308864,136.84,136.8,14.73327804]
[1764167950741,8.80994492,136.84,136.8,14.73327804]
[1764167951019,8.80994492,136.82,136.81,7.42333652]
[1764167951218,8.80994492,136.82,136.8,33.00813184]
[1764167951413,0.7,136.82,136.8,33.00813184]
[1764167952129,9.50994492,136.82,136.8,7.30994152]
[1764167952418,12.80994492,136.82,136.79,7.31047591]
[1764167952621,0.7,136.81,136.79,14.73381243]
[1764167952823,0.7,136.81,136.79,7.31047591]
[1764167953121,0.7,136.81,136.78,7.31092504]
[1764167954114,7.42333652,136.79,136.75,18.28108803]
[1764167954308,8.80994492,136.78,136.73,25.59789365]
[1764167954496,9.48994492,136.78,136.73,25.59789365]
[1764167954704,9.48994492,136.78,136.73,7.3136839]
[1764167954705,8.80994492,136.74,136.73,7.3136839]
[1764167954903,9.48994492,136.74,136.73,7.3136839]
[1764167955102,9.48994492,136.74,136.71,7.3142269]
[1764167955318,0.68,136.73,136.71,7.3142269]
[1764167955694,8.80994492,136.72,136.68,7.42333652]
[1764167955894,8.80994492,136.72,136.69,7.42333652]
[1764167956100,8.80994492,136.74,136.71,7.42333652]
[1764167956400,0.68,136.75,136.73,14.73702042]
[1764167956930,27.03220052,136.78,136.74,7.42333652]
[1764167956931,8.80994492,136.77,136.74,7.42333652]
[1764167957100,9.48994492,136.77,136.73,33.02123017]
[1764167957300,8.80994492,136.75,136.73,33.02123017]
[1764167957809,0.68,136.75,136.73,33.02123017]
[1764167958122,8.80994492,136.77,136.74,7.42333652]
[1764167958327,0.68,136.76,136.74,7.42333652]
[1764167958509,9.48994492,136.76,136.75,7.31261425]
[1764167958709,8.80994492,136.75,136.72,7.42333652]
[1764167958911,9.48994492,136.75,136.72,14.73722685]
[1764167959113,0.68,136.78,136.74,7.42333652]
[1764167959296,8.80994492,136.79,136.77,7.42333652]
[1764167959505,9.48994492,136.79,136.77,7.42333652]
[1764167959903,0.68,136.83,136.78,7.42333652]
[1764167960110,8.80994492,136.82,136.8,7.42333652]
[1764167960629,8.80994492,136.82,136.81,7.3094072]
[1764167960830,23.73220052,136.84,136.81,7.3094072]
[1764167961004,8.80994492,136.83,136.81,7.3094072]
[1764167961434,0.68,136.82,136.81,7.3094072]
[1764167962134,0.68,136.82,136.79,7.3102139]
[1764167962316,8.80994492,136.8,136.79,7.3102139]
[1764167962717,9.48994492,136.8,136.77,25.59002536]
[1764167963016,8.80994492,136.8,136.78,7.42333652]
[1764167963411,0.2,136.88,136.79,7.93333652]
[1764167963730,33.42214544,136.87,136.82,7.42333652]
[1764167964024,33.42214544,136.87,136.79,0.51]
[1764167964203,0.68,136.86,136.82,7.42333652]
[1764167964606,0.68,136.86,136.83,7.30833881]
[1764167965016,16.988864,136.86,136.83,7.30833881]
[1764167965524,8.80994492,136.84,136.83,7.30833881]
[1764167965930,0.68,136.85,136.83,7.30833881]
[1764167966430,0.68,136.85,136.83,14.73167533]
[1764167966813,8.80994492,136.86,136.83,33.00252236]
[1764167967020,9.48994492,136.86,136.83,25.57918584]
[1764167967333,0.68,136.85,136.83,25.57918584]
[1764167967626,9.48994492,136.86,136.83,33.00252236]
[1764167968145,8.80994492,136.86,136.84,7.42333652]
[1764167968322,0.2,136.87,136.85,7.42333652]
[1764167968713,0.2,136.87,136.83,29.36918584]
[1764167968714,0.2,136.87,136.86,14.73007333]
[1764167970135,0.2,136.87,136.86,7.30673681]
[1764167971835,0.2,136.91,136.86,54.54375738]
[1764167972012,1e-08,136.91,136.9,7.42333652]
[1764167972214,1e-08,136.91,136.9,10.98765966]
[1764167972418,1e-08,136.91,136.9,11.49765966]
[1764167972933,0.68,137.0,136.94,7.42333652]
[1764167973132,8.80994492,136.99,136.98,7.30033581]
[1764167973512,9.48994492,136.99,136.98,7.30033581]
[1764167973722,0.68,136.99,136.98,7.30033581]
[1764167974117,3.81828946,137.04,136.98,32.97451186]
[1764167974314,0.68,137.04,137.0,7.42333652]
[1764167974538,0.68,137.03,136.98,25.55117534]
[1764167974730,7.42333652,137.02,136.98,25.55117534]
[1764167975048,8.80994492,137.01,136.95,25.55677254]
[1764167975344,9.48994492,137.01,136.97,7.42333652]
[1764167975515,9.48994492,137.03,136.98,7.42333652]
[1764167975940,0.68,137.02,136.98,7.42333652]
[1764167976418,0.68,137.02,136.99,7.42333652]
[1764167976749,9.48994492,137.06,137.01,7.42333652]
[1764167976924,0.68,137.08,137.05,7.42333652]
[1764167977256,8.80994492,137.07,137.01,36.49192862]
[1764167977547,8.80994492,137.07,137.03,7.42333652]
[1764167977723,0.68,137.06,137.03,25.66714202]
[1764167978544,0.68,137.06,137.03,18.2438055]
[1764167978840,0.68,137.06,137.03,25.66714202]
[1764167979249,8.80994492,137.08,137.05,7.42333652]
[1764167979417,8.80994492,137.08,137.07,7.42333652]
[1764167979736,8.80994492,137.08,137.06,7.42333652]
[1764167980638,0.68,137.07,137.04,7.42333652]
[1764167981134,0.68,137.07,137.05,7.29660707]
[1764167983354,7.62333652,137.09,137.06,7.42333652]
[1764167983355,0.2,137.09,137.06,7.42333652]
[1764167983520,8.80994492,137.08,137.06,7.42333652]
[1764167983839,16.23328144,137.08,137.05,7.29660707]
[1764167984020,8.80994492,137.06,137.05,7.29660707]
[1764167984618,0.2,137.09,137.05,32.96146128]
[1764167984820,0.2,137.09,137.08,7.42333652]
[1764167985328,0.2,137.09,137.08,14.71834673]
[1764167987044,1e-08,137.09,137.08,14.71834673]
[1764167988162,0.69000001,137.09,137.08,7.29501021]
[1764167988322,0.69000001,137.09,137.04,18.24237976]
[1764167988323,8.80994492,137.08,137.04,18.24237976]
[1764167988649,8.80994492,137.06,137.05,7.29660185]
[1764167988819,8.80994492,137.06,137.02,7.29820464]
[1764167989022,9.49994492,137.06,137.03,7.42333652]
[1764167989220,3.97000001,137.09,137.05,7.42333652]
[1764167989458,9.49994492,137.08,137.06,7.29607471]
[1764167990141,8.99994492,137.08,137.06,7.29607471]
[1764167990336,0.69,137.07,137.06,7.29607471]
[1764167991752,0.69,137.07,137.04,25.539081]
[1764167991952,0.69,137.07,137.04,32.96241752]
[1764167993158,8.80994492,137.06,137.04,25.539081]
[1764167993748,9.49994492,137.05,137.04,18.24194148]
[1764167994156,8.80994492,137.05,137.04,25.665278]
[1764167994332,0.69,137.06,137.04,25.665278]
[1764167994537,0.69,137.06,137.04,31.11618576]
[1764167994746,12.08994492,137.08,137.04,31.11618576]
[1764167994946,9.49994492,137.08,137.05,12.87424428]
[1764167995146,0.69,137.07,137.05,12.87424428]
[1764167995358,0.69,137.07,137.04,31.11618576]
[1764167995655,0.69,137.07,137.05,12.87424428]
[1764167996158,0.69,137.07,137.04,38.41332528]
[1764167996929,8.80994492,137.06,137.04,25.539081]
[1764167997432,8.80994492,137.06,137.04,38.41332528]
[1764167997633,0.69,137.06,137.04,38.41332528]
[1764167997838,0.69,137.06,137.04,25.539081]
[1764167998137,0.69,137.05,137.04,25.539081]
[1764167998530,8.80994492,137.06,137.04,38.41332528]
[1764167999053,12.08994492,137.08,137.04,26.049081]
[1764167999241,12.08994492,137.08,137.05,12.87424428]
[1764167999439,12.08994492,137.08,137.06,12.87424428]
[1764167999440,8.80994492,137.08,137.06,12.87424428]
[1764167999760,8.80994492,137.08,137.07,20.1697867]
[1764168000052,1e-08,137.09,137.07,20.1697867]
[1764168000362,1e-08,137.09,137.08,13.38424428]
[1764168000860,1e-08,137.09,137.08,26.5428117]
[1764168001048,1e-08,137.09,137.08,0.79432314]
[1764168001355,1e-08,137.09,137.07,20.1697867]
[1764168001531,0.69000001,137.09,137.07,7.29554242]
[1764168001853,0.69000001,137.09,137.07,20.1697867]
[1764168002054,1e-08,137.09,137.07,20.1697867]
[1764168002359,1e-08,137.09,137.08,12.87424428]
[1764168002755,1e-08,137.09,137.08,16.66424428]
[1764168002934,1e-08,137.09,137.08,3.79]
[1764168003286,1e-08,137.09,137.08,16.66424428]
[1764168003842,1e-08,137.09,137.08,23.95925449]
[1764168004362,1e-08,137.09,137.08,24.24357763]
[1764168004557,0.69,137.19,137.09,16.59318714]
[1764168004855,0.69,137.2,137.18,12.87424428]
[1764168005067,0.69,137.2,137.19,12.87424428]
[1764168005243,0.2,137.22,137.19,12.87424428]
[1764168005450,0.2,137.22,137.13,16.308864]
[1764168005451,1e-08,137.22,137.21,12.87424428]
[1764168005955,1e-08,137.22,137.21,20.16234281]
[1764168006838,1e-08,137.22,137.21,7.28809853]
[1764168007045,1e-08,137.22,137.21,20.16234281]
[1764168007247,1e-08,137.22,137.21,20.67234281]
[1764168007452,1.99999999,137.36,137.21,20.67234281]
[1764168007453,0.68,137.31,137.22,0.28432314]
[1764168007642,0.68,137.31,137.29,12.87424428]
[1764168007964,16.988864,137.31,137.3,7.28332119]
[1764168008150,8.80994492,137.3,137.29,7.28369948]
[1764168008344,9.48994492,137.3,137.29,7.28369948]
[1764168008937,9.48994492,137.3,137.28,7.28424479]
[1764168009137,16.308864,137.32,137.28,7.28424479]
[1764168009138,8.80994492,137.31,137.29,12.87424428]
[1764168009344,0.68,137.35,137.3,12.87424428]
[1764168009563,0.68,137.37,137.34,12.87424428]
[1764168009739,4.48921983,137.39,137.33,3.28]
[1764168009942,0.1,137.41,137.33,3.28]
[1764168009943,0.1,137.41,137.37,20.15385409]
[1764168010140,0.1,137.41,137.37,20.66385409]
[1764168010340,1e-08,137.43,137.38,0.79432314]
[1764168010573,1e-08,137.43,137.42,12.87424428]
[1764168010866,1e-08,137.43,137.39,3.28]
[1764168011045,1e-08,137.43,137.42,12.87424428]
[1764168011247,0.68000001,137.43,137.41,12.87424428]
[1764168011577,0.68000001,137.43,137.39,3.28]
[1764168011742,0.68000001,137.43,137.4,12.87424428]
[1764168011939,0.68000001,137.43,137.42,7.27696114]
[1764168012168,0.68000001,137.43,137.39,7.27855011]
[1764168012169,9.48994493,137.43,137.39,7.27855011]
[1764168012482,0.68000001,137.43,137.39,25.47492539]
[1764168012775,0.68,137.42,137.4,12.87424428]
[1764168012943,1e-08,137.43,137.41,12.87424428]
[1764168013260,1e-08,137.43,137.42,12.87424428]
[1764168013466,0.68000001,137.43,137.39,25.47492539]
[1764168013663,1e-08,137.43,137.42,12.87424428]
[1764168014042,1e-08,137.43,137.42,7.27696114]
[1764168014452,1e-08,137.43,137.42,20.15120542]
[1764168014658,1e-08,137.43,137.42,7.27696114]
[1764168014864,1e-08,137.43,137.42,20.15120542]
[1764168015073,0.1,137.46,137.42,39.13793141]
[1764168015272,0.1,137.46,137.45,12.87424428]
[1764168015449,0.1,137.48,137.43,3.79]
[1764168015776,8.80994492,137.46,137.42,25.46936399]
[1764168016073,21.6841892,137.44,137.4,18.1949527]
[1764168016266,21.6841892,137.44,137.39,20.15279439]
[1764168016462,8.80994492,137.42,137.39,7.27855011]
[1764168016787,8.80994492,137.42,137.35,12.87424428]
[1764168016788,12.87424428,137.4,137.35,12.87424428]
[1764168016947,21.6841892,137.38,137.34,18.20272592]
[1764168017151,21.6841892,137.38,137.34,7.28119994]
[1764168017351,16.308864,137.39,137.35,12.87424428]
[1764168017579,0.67,137.38,137.35,12.87424428]
[1764168017771,0.67,137.38,137.34,38.35844407]
[1764168018082,0.67,137.38,137.34,7.28119994]
[1764168018083,21.6841892,137.37,137.34,7.28119994]
[1764168018456,21.6841892,137.35,137.32,7.28216996]
[1764168018658,8.80994492,137.33,137.31,7.28269034]
[1764168018875,12.87424428,137.32,137.27,31.0852785]
[1764168019067,8.80994492,137.31,137.28,38.36958227]
[1764168019368,8.80994492,137.34,137.3,12.87424428]
[1764168019575,8.80994492,137.34,137.32,12.87424428]
[1764168019983,9.47994492,137.34,137.32,7.28226041]
[1764168020589,8.80994492,137.36,137.33,12.87424428]
[1764168020755,8.80994492,137.36,137.34,12.87424428]
[1764168020959,9.47994492,137.36,137.34,12.87424428]
[1764168021287,9.47994492,137.35,137.32,7.28226041]
[1764168021451,9.47994492,137.35,137.31,7.28278741]
[1764168021452,8.80994492,137.33,137.31,7.28278741]
[1764168021653,12.87424428,137.32,137.28,7.28423532]
[1764168021866,13.54424428,137.32,137.28,7.28423532]
[1764168022086,8.80994492,137.31,137.29,12.87424428]
[1764168022294,8.80994492,137.31,137.28,7.28423532]
[1764168022295,9.47994492,137.31,137.28,38.36943531]
[1764168022708,8.80994492,137.33,137.3,12.87424428]
[1764168022998,25.11880892,137.35,137.32,12.87424428]
[1764168023207,16.308864,137.36,137.34,12.87424428]
[1764168023362,0.67,137.4,137.35,12.87424428]
[1764168023696,0.67,137.46,137.39,12.87424428]
[1764168023861,0.67,137.49,137.45,12.87424428]
[1764168024072,0.77,137.5,137.43,25.46751072]
[1764168024295,0.77,137.5,137.47,12.87424428]
[1764168024492,0.77,137.48,137.47,12.87424428]
[1764168024696,0.1,137.48,137.47,12.87424428]
[1764168025760,0.1,137.48,137.45,3.28]
[1764168025961,0.1,137.48,137.47,20.14855867]
[1764168026182,0.1,137.48,137.45,21.46733766]
[1764168026183,0.67,137.47,137.45,7.2749148]
[1764168026401,8.80994492,137.46,137.45,7.2749148]
[1764168026696,8.80994492,137.46,137.44,12.87424428]
[1764168026907,8.80994492,137.46,137.44,20.14997394]
[1764168027275,0.67,137.45,137.44,7.27572966]
[1764168027598,9.47994492,137.45,137.44,7.27572966]
[1764168028177,8.80994492,137.44,137.43,7.27628452]
[1764168028589,38.6630532,137.47,137.43,25.46736361]
[1764168028775,9.47994492,137.47,137.44,12.87424428]
[1764168029708,0.1,137.48,137.46,12.87424428]
[1764168029893,0.1,137.48,137.47,12.87424428]
[1764168030202,0.1,137.48,137.47,7.27431439]
[1764168030578,8.80994492,137.47,137.42,18.19130503]
[1764168030766,8.80994492,137.47,137.43,12.87424428]
[1764168030967,16.408864,137.48,137.44,12.87424428]
[1764168031265,0.1,137.48,137.47,12.87424428]
[1764168031464,0.1,137.48,137.45,3.28]
[1764168031689,1e-08,137.48,137.47,12.87424428]
[1764168031872,1e-08,137.48,137.47,13.15856742]
[1764168032066,1e-08,137.5,137.48,7.27378527]
[1764168032262,1e-08,137.5,137.49,16.43856742]
[1764168032484,1e-08,137.5,137.49,4.07432314]
[1764168032682,1e-08,137.5,137.49,16.94856742]
[1764168033082,1e-08,137.5,137.48,7.27378527]
[1764168033277,1e-08,137.5,137.48,20.14802955]
[1764168033592,1e-08,137.5,137.49,12.87424428]
[1764168033795,0.67,137.49,137.48,20.14802955]
[1764168033995,1e-08,137.5,137.48,7.27378527]
[1764168034298,8.80994492,137.48,137.46,7.27484359]
[1764168034478,8.80994492,137.48,137.46,25.46195256]
[1764168034681,9.47994492,137.47,137.46,7.27484359]
[1764168035099,8.80994492,137.46,137.35,0.51]
[1764168035290,8.80994492,137.42,137.38,12.87424428]
[1764168035598,8.80994492,137.44,137.4,12.87424428]
[1764168036112,8.80994492,137.42,137.38,12.87424428]
[1764168036272,8.80994492,137.42,137.39,25.47492539]
[1764168036468,8.80994492,137.42,137.4,12.87424428]
[1764168036677,7.27392135,137.48,137.39,25.47492539]
[1764168036678,16.308864,137.47,137.39,28.75492539]
[1764168036998,8.80994492,137.46,137.43,12.87424428]
[1764168037293,9.47994492,137.46,137.39,28.75492539]
[1764168037492,8.80994492,137.46,137.42,12.87424428]
[1764168037869,9.47994492,137.46,137.42,12.87424428]
[1764168038093,0.67,137.45,137.42,12.87424428]
[1764168038395,0.67,137.45,137.43,7.27643163]
[1764168038396,8.80994492,137.44,137.43,7.27643163]
[1764168038589,0.67,137.44,137.43,25.46751072]
[1764168038786,0.67,137.44,137.41,18.19358251]
[1764168039183,8.80994492,137.43,137.41,18.19358251]
[1764168039380,12.87424428,137.42,137.4,7.27802037]
[1764168039574,8.80994492,137.41,137.4,7.27802037]
[1764168039893,9.47994492,137.41,137.4,7.27802037]
[1764168040293,9.47994492,137.41,137.39,25.47446365]
[1764168040673,8.80994492,137.43,137.4,12.87424428]
[1764168040907,9.47994492,137.43,137.4,12.87424428]
[1764168041579,8.80994492,137.41,137.39,25.47446365]
[1764168042082,9.47994492,137.4,137.39,7.27855011]
[1764168042285,22.3541892,137.4,137.35,25.48185101]
[1764168042501,8.80994492,137.38,137.35,25.48185101]
[1764168042679,21.6841892,137.38,137.35,7.28066982]
[1764168042874,8.80994492,137.36,137.35,7.28066982]
[1764168043088,8.80994492,137.36,137.32,7.28226041]
[1764168043089,21.6841892,137.36,137.32,7.28226041]
[1764168043284,22.3541892,137.36,137.32,7.28226041]
[1764168043585,8.80994492,137.34,137.32,7.28226041]
[1764168044104,9.47994492,137.34,137.32,7.28226041]
[1764168044597,8.80994492,137.34,137.31,25.48895953]
[1764168044980,8.80994492,137.34,137.31,38.36320381]
[1764168045403,8.80994492,137.33,137.31,25.48895953]
[1764168045587,9.47994492,137.33,137.31,25.48895953]
[1764168045796,9.47994492,137.32,137.31,7.28279076]
[1764168046594,9.47994492,137.32,137.29,25.49327586]
[1764168046986,0.67,137.31,137.29,25.49327586]
[1764168048337,8.80994492,137.32,137.29,25.49327586]
[1764168048484,8.80994492,137.32,137.31,7.28279076]
[1764168048878,12.08994492,137.35,137.31,38.36401195]
[1764168049074,8.80994492,137.33,137.31,25.48976767]
[1764168049278,0.67,137.37,137.32,12.87424428]
[1764168049496,1.99999999,137.44,137.32,12.87424428]
[1764168049497,8.80994492,137.38,137.34,12.87424428]
[1764168049716,0.67,137.42,137.37,12.87424428]
[1764168049877,0.67,137.42,137.39,12.87424428]
[1764168050077,8.80994492,137.41,137.38,12.87424428]
[1764168050294,0.67,137.42,137.39,12.87424428]
[1764168050577,0.67,137.42,137.4,7.27802037]
[1764168050914,8.80994492,137.41,137.4,7.27802037]
[1764168051408,22.3541892,137.41,137.37,25.4783963]
[1764168051606,8.80994492,137.39,137.37,25.4783963]
[1764168051912,21.6841892,137.39,137.36,7.27996152]
[1764168052121,0.67,137.38,137.36,7.27996152]
[1764168052319,0.67,137.38,137.34,7.28119994]
[1764168052527,8.80994492,137.36,137.34,18.20299985]
[1764168052821,8.80994492,137.36,137.33,7.28173013]
[1764168052822,8.80994492,137.35,137.33,7.28173013]
[1764168053008,9.47994492,137.35,137.33,7.28173013]
[1764168053209,13.54424428,137.34,137.33,7.28173013]
[1764168053406,0.67,137.34,137.33,7.28173013]
[1764168053613,22.3541892,137.34,137.3,18.20790917]
[1764168053817,8.80994492,137.33,137.3,25.49123036]
[1764168054202,9.47994492,137.33,137.3,25.49123036]
[1764168055239,8.80994492,137.34,137.3,25.49123036]
[1764168055804,9.47994492,137.34,137.3,25.49123036]
[1764168056019,8.80994492,137.35,137.31,7.36680346]
[1764168056336,8.80994492,137.35,137.33,7.36680346]
[1764168056537,12.08994492,137.38,137.35,25.48234437]
[1764168056700,12.75994492,137.38,137.35,25.48234437]
[1764168057033,0.67,137.37,137.35,25.48234437]
[1764168057404,12.08994492,137.38,137.35,25.48234437]
[1764168057607,24.34566746,137.4,137.35,32.84914783]
[1764168057838,8.80994492,137.39,137.36,7.36680346]
[1764168058370,7.36680346,137.41,137.37,7.36680346]
[1764168058371,12.08994492,137.41,137.37,7.36680346]
[1764168058522,1e-08,137.5,137.38,25.47677973]
[1764168058723,0.67,137.46,137.42,7.36680346]
[1764168058900,0.67,137.46,137.38,29.26677973]
[1764168059107,8.03680346,137.46,137.41,7.36680346]
[1764168059333,0.67,137.46,137.43,7.36680346]
[1764168059955,16.308864,137.47,137.44,7.36680346]